[Event "Titled Tuesday Blitz July 11 Late 2023"]
[White "Fedoseev, Vladimir"]
[Black "Jarovinsky, Alexey"]
[WhiteFideId "24130737"]
[BlackFideId "14115131"]
[WhiteElo "3074"]
[BlackElo "2722"]
[Result "1-0"]
[Round "3"]
[TimeControl "180+2"]
[Date "2023.07.11"]
[WhiteClock "0:00:30"]
[BlackClock "0:00:00"]
[Board "8"]

1. Nf3 {[%clk 0:02:59]}  Nc6 {[%clk 0:03:00]} 2. h4 {[%clk 0:02:54]}  e5 {[%clk 0:02:58]} 3. h5 {[%clk 0:02:55]}  e4 {[%clk 0:02:57]} 4. Nh4 {[%clk 0:02:55]}  d5 {[%clk 0:02:56]} 5. d3 {[%clk 0:02:54]}  Bc5 {[%clk 0:02:41]} 6. dxe4 {[%clk 0:02:44]}  Qf6 {[%clk 0:02:39]} 7. e3 {[%clk 0:02:37]}  dxe4 {[%clk 0:02:35]} 8. Nc3 {[%clk 0:02:37]}  Qe5 {[%clk 0:02:28]} 9. g3 {[%clk 0:02:17]}  Nf6 {[%clk 0:02:26]} 10. h6 {[%clk 0:02:17]}  g5 {[%clk 0:02:25]} 11. Ng2 {[%clk 0:02:16]}  Bg4 {[%clk 0:02:25]} 12. Be2 {[%clk 0:02:14]}  Rd8 {[%clk 0:02:24]} 13. Bd2 {[%clk 0:02:09]}  Qf5 {[%clk 0:02:22]} 14. Bxg4 {[%clk 0:01:52]}  Nxg4 {[%clk 0:02:23]} 15. Qe2 {[%clk 0:01:51]}  Qf3 {[%clk 0:02:08]} 16. Rg1 {[%clk 0:01:50]}  Nce5 {[%clk 0:02:02]} 17. O-O-O {[%clk 0:01:20]}  Qxe2 {[%clk 0:01:44]} 18. Nxe2 {[%clk 0:01:21]}  Nxf2 {[%clk 0:01:06]} 19. Rdf1 {[%clk 0:01:19]}  Nfg4 {[%clk 0:01:04]} 20. Bc3 {[%clk 0:01:13]}  Ke7 {[%clk 0:00:47]} 21. Rh1 {[%clk 0:01:05]}  f6 {[%clk 0:00:38]} 22. Bxe5 {[%clk 0:01:03]}  fxe5 {[%clk 0:00:16]} 23. Nc3 {[%clk 0:01:03]}  Nxe3 {[%clk 0:00:10]} 24. Nxe3 {[%clk 0:01:02]}  Bxe3+ {[%clk 0:00:10]} 25. Kb1 {[%clk 0:01:02]}  Rhf8 {[%clk 0:00:09]} 26. Rxf8 {[%clk 0:00:51]}  Kxf8 {[%clk 0:00:10]} 27. Nxe4 {[%clk 0:00:50]}  Kf7 {[%clk 0:00:06]} 28. c3 {[%clk 0:00:43]}  Kg6 {[%clk 0:00:05]} 29. Kc2 {[%clk 0:00:43]}  Rf8 {[%clk 0:00:02]} 30. Kd3 {[%clk 0:00:42]}  Bb6 {[%clk 0:00:02]} 31. Ke2 {[%clk 0:00:39]}  g4 {[%clk 0:00:02]} 32. Rh4 {[%clk 0:00:34]}  Kf5 {[%clk 0:00:01]} 33. Nd2 {[%clk 0:00:33]}  Rf6 {[%clk 0:00:00]} 34. a4 {[%clk 0:00:30]} 1-0


[Site "https://www.chess.com"]

[Event "Titled Tuesday Blitz July 11 Late 2023"]
[White "Nazari, Arad"]
[Black "Duda, Jan-Krzysztof"]
[WhiteFideId "12577324"]
[BlackFideId "1170546"]
[WhiteElo "2721"]
[BlackElo "3058"]
[Result "0-1"]
[Round "3"]
[TimeControl "180+2"]
[Date "2023.07.11"]
[WhiteClock "0:00:15"]
[BlackClock "0:00:40"]
[Board "9"]

1. e4 {[%clk 0:03:00]}  e5 {[%clk 0:03:00]} 2. f4 {[%clk 0:03:00]}  d5 {[%clk 0:02:57]} 3. exd5 {[%clk 0:03:00]}  exf4 {[%clk 0:02:56]} 4. Nf3 {[%clk 0:03:01]}  Nf6 {[%clk 0:02:56]} 5. Bb5+ {[%clk 0:03:01]}  c6 {[%clk 0:02:52]} 6. dxc6 {[%clk 0:03:01]}  Nxc6 {[%clk 0:02:53]} 7. Nc3 {[%clk 0:03:01]}  Bd6 {[%clk 0:02:53]} 8. Qe2+ {[%clk 0:03:02]}  Be6 {[%clk 0:02:52]} 9. Nd4 {[%clk 0:03:03]}  Qd7 {[%clk 0:02:32]} 10. Nxe6 {[%clk 0:03:02]}  fxe6 {[%clk 0:02:32]} 11. b3 {[%clk 0:03:02]}  O-O {[%clk 0:02:29]} 12. Bxc6 {[%clk 0:02:53]}  Qxc6 {[%clk 0:02:26]} 13. Bb2 {[%clk 0:02:43]}  e5 {[%clk 0:02:19]} 14. O-O-O {[%clk 0:02:41]}  Rac8 {[%clk 0:02:12]} 15. Kb1 {[%clk 0:02:23]}  e4 {[%clk 0:02:10]} 16. Rhf1 {[%clk 0:02:18]}  a6 {[%clk 0:02:09]} 17. Rde1 {[%clk 0:01:51]}  Rfe8 {[%clk 0:02:03]} 18. Qd1 {[%clk 0:01:44]}  b5 {[%clk 0:01:57]} 19. Ne2 {[%clk 0:01:40]}  Nd5 {[%clk 0:01:55]} 20. Nd4 {[%clk 0:01:35]}  Qd7 {[%clk 0:01:56]} 21. Qh5 {[%clk 0:01:31]}  Re5 {[%clk 0:01:30]} 22. Qh4 {[%clk 0:00:54]}  Be7 {[%clk 0:01:22]} 23. Qf2 {[%clk 0:00:52]}  Bc5 {[%clk 0:01:22]} 24. Qh4 {[%clk 0:00:47]}  g5 {[%clk 0:00:57]} 25. Qh6 {[%clk 0:00:38]}  Bxd4 {[%clk 0:00:56]} 26. Bxd4 {[%clk 0:00:37]}  Rc6 {[%clk 0:00:57]} 27. Qxc6 {[%clk 0:00:37]}  Qxc6 {[%clk 0:00:58]} 28. Bxe5 {[%clk 0:00:37]}  Nb4 {[%clk 0:00:51]} 29. Bc3 {[%clk 0:00:35]}  Nxc2 {[%clk 0:00:51]} 30. Kxc2 {[%clk 0:00:35]}  b4 {[%clk 0:00:51]} 31. g3 {[%clk 0:00:26]}  bxc3 {[%clk 0:00:50]} 32. gxf4 {[%clk 0:00:24]}  cxd2+ {[%clk 0:00:41]} 33. Kxd2 {[%clk 0:00:25]}  gxf4 {[%clk 0:00:39]} 34. Rxf4 {[%clk 0:00:20]}  Qd6+ {[%clk 0:00:38]} 35. Ke3 {[%clk 0:00:20]}  Qd3+ {[%clk 0:00:39]} 36. Kf2 {[%clk 0:00:15]}  Qd2+ {[%clk 0:00:40]} 0-1


[Site "https://www.chess.com"]

[Event "Titled Tuesday Blitz July 11 Late 2023"]
[White "Martinez Alcantara, Jose Eduardo"]
[Black "Haydon, David L"]
[WhiteFideId "3805662"]
[BlackFideId "415405"]
[WhiteElo "3017"]
[BlackElo "2719"]
[Result "1-0"]
[Round "3"]
[TimeControl "180+2"]
[Date "2023.07.11"]
[WhiteClock "0:01:28"]
[BlackClock "0:01:20"]
[Board "10"]

1. e4 {[%clk 0:03:00]}  c6 {[%clk 0:02:57]} 2. d4 {[%clk 0:03:00]}  d5 {[%clk 0:02:57]} 3. e5 {[%clk 0:03:01]}  Bf5 {[%clk 0:02:56]} 4. h4 {[%clk 0:03:01]}  h5 {[%clk 0:02:56]} 5. Bd3 {[%clk 0:03:01]}  Bxd3 {[%clk 0:02:55]} 6. Qxd3 {[%clk 0:03:02]}  e6 {[%clk 0:02:56]} 7. Nf3 {[%clk 0:03:03]}  Ne7 {[%clk 0:02:55]} 8. Bg5 {[%clk 0:03:02]}  Qc7 {[%clk 0:02:55]} 9. Nbd2 {[%clk 0:03:02]}  Nd7 {[%clk 0:02:55]} 10. c4 {[%clk 0:03:01]}  a6 {[%clk 0:02:56]} 11. O-O {[%clk 0:03:01]}  Nf5 {[%clk 0:02:55]} 12. Rac1 {[%clk 0:03:01]}  Nb6 {[%clk 0:02:53]} 13. b3 {[%clk 0:02:50]}  Be7 {[%clk 0:02:53]} 14. g3 {[%clk 0:02:47]}  Bxg5 {[%clk 0:02:47]} 15. Nxg5 {[%clk 0:02:48]}  dxc4 {[%clk 0:02:47]} 16. bxc4 {[%clk 0:02:44]}  Rd8 {[%clk 0:02:46]} 17. d5 {[%clk 0:02:19]}  cxd5 {[%clk 0:02:34]} 18. cxd5 {[%clk 0:02:17]}  Qxe5 {[%clk 0:02:34]} 19. Qb3 {[%clk 0:02:05]}  Nxd5 {[%clk 0:02:30]} 20. Qxb7 {[%clk 0:02:05]}  O-O {[%clk 0:02:28]} 21. Ndf3 {[%clk 0:02:05]}  Qe2 {[%clk 0:02:23]} 22. a4 {[%clk 0:01:54]}  Nf6 {[%clk 0:02:05]} 23. Rfe1 {[%clk 0:01:52]}  Qa2 {[%clk 0:01:58]} 24. Qxa6 {[%clk 0:01:48]}  Ra8 {[%clk 0:01:49]} 25. Qb7 {[%clk 0:01:42]}  Rxa4 {[%clk 0:01:35]} 26. Rc8 {[%clk 0:01:29]}  Ra8 {[%clk 0:01:20]} 27. Qxf7+ {[%clk 0:01:28]} 1-0


[Site "https://www.chess.com"]

[Event "Titled Tuesday Blitz July 11 Late 2023"]
[White "Deac, Bogdan-Daniel"]
[Black "Cugimura97"]
[WhiteFideId "1226380"]
[WhiteElo "2994"]
[BlackElo "2700"]
[Result "1/2-1/2"]
[Round "3"]
[TimeControl "180+2"]
[Date "2023.07.11"]
[WhiteClock "0:00:04"]
[BlackClock "0:01:17"]
[Board "14"]

1. b3 {[%clk 0:03:00]}  d5 {[%clk 0:02:58]} 2. Bb2 {[%clk 0:03:00]}  Nf6 {[%clk 0:02:58]} 3. e3 {[%clk 0:03:00]}  Bf5 {[%clk 0:02:57]} 4. c4 {[%clk 0:03:01]}  c6 {[%clk 0:02:55]} 5. cxd5 {[%clk 0:02:57]}  cxd5 {[%clk 0:02:56]} 6. Bb5+ {[%clk 0:02:57]}  Nc6 {[%clk 0:02:55]} 7. Nf3 {[%clk 0:02:54]}  Rc8 {[%clk 0:02:53]} 8. Nc3 {[%clk 0:02:54]}  a6 {[%clk 0:02:52]} 9. Bxc6+ {[%clk 0:02:54]}  Rxc6 {[%clk 0:02:52]} 10. Nd4 {[%clk 0:02:53]}  Rxc3 {[%clk 0:02:43]} 11. dxc3 {[%clk 0:02:48]}  Bg4 {[%clk 0:02:43]} 12. f3 {[%clk 0:02:33]}  Bd7 {[%clk 0:02:41]} 13. f4 {[%clk 0:02:28]}  e6 {[%clk 0:02:30]} 14. O-O {[%clk 0:02:27]}  Bc5 {[%clk 0:02:28]} 15. c4 {[%clk 0:02:27]}  O-O {[%clk 0:02:26]} 16. Rc1 {[%clk 0:02:25]}  dxc4 {[%clk 0:02:24]} 17. bxc4 {[%clk 0:02:20]}  Qe7 {[%clk 0:02:25]} 18. Qf3 {[%clk 0:02:14]}  e5 {[%clk 0:02:23]} 19. fxe5 {[%clk 0:01:19]}  Qxe5 {[%clk 0:02:24]} 20. Qf4 {[%clk 0:01:19]}  Qxf4 {[%clk 0:02:17]} 21. Rxf4 {[%clk 0:01:12]}  Re8 {[%clk 0:02:18]} 22. Nc2 {[%clk 0:01:05]}  Rxe3 {[%clk 0:02:05]} 23. Bd4 {[%clk 0:00:49]}  Bxd4 {[%clk 0:02:05]} 24. Rxd4 {[%clk 0:00:46]}  Rc3 {[%clk 0:01:57]} 25. Rdd1 {[%clk 0:00:46]}  Rxc4 {[%clk 0:01:51]} 26. Nd4 {[%clk 0:00:33]}  Rxc1 {[%clk 0:01:51]} 27. Rxc1 {[%clk 0:00:33]}  Ne8 {[%clk 0:01:51]} 28. Rb1 {[%clk 0:00:29]}  b5 {[%clk 0:01:42]} 29. Nb3 {[%clk 0:00:17]}  Kf8 {[%clk 0:01:39]} 30. Nc5 {[%clk 0:00:17]}  Bf5 {[%clk 0:01:38]} 31. Rd1 {[%clk 0:00:07]}  Nc7 {[%clk 0:01:38]} 32. Rd8+ {[%clk 0:00:05]}  Ke7 {[%clk 0:01:37]} 33. Rb8 {[%clk 0:00:05]}  Be6 {[%clk 0:01:30]} 34. a3 {[%clk 0:00:04]}  Bc4 {[%clk 0:01:25]} 35. Rb6 {[%clk 0:00:04]}  a5 {[%clk 0:01:23]} 36. Nb7 {[%clk 0:00:03]}  a4 {[%clk 0:01:21]} 37. Nd6 {[%clk 0:00:03]}  Nd5 {[%clk 0:01:16]} 38. Ra6 {[%clk 0:00:02]}  Nc7 {[%clk 0:01:15]} 39. Rc6 {[%clk 0:00:02]}  Kd7 {[%clk 0:01:15]} 40. Rb6 {[%clk 0:00:02]}  Nd5 {[%clk 0:01:16]} 41. Ra6 {[%clk 0:00:03]}  Nc7 {[%clk 0:01:16]} 42. Rb6 {[%clk 0:00:03]}  Nd5 {[%clk 0:01:17]} 43. Ra6 {[%clk 0:00:04]}  Nc7 {[%clk 0:01:17]} 44. Rb6 {[%clk 0:00:04]} 1/2-1/2


[Site "https://www.chess.com"]

[Event "Titled Tuesday Blitz July 11 Late 2023"]
[White "He, Anthony"]
[Black "2KRK1"]
[WhiteFideId "2088215"]
[WhiteElo "2992"]
[BlackElo "2692"]
[Result "1-0"]
[Round "3"]
[TimeControl "180+2"]
[Date "2023.07.11"]
[WhiteClock "0:01:21"]
[BlackClock "0:00:00"]
[Board "15"]

1. d4 {[%clk 0:03:00]}  d6 {[%clk 0:02:59]} 2. Nc3 {[%clk 0:03:00]}  e5 {[%clk 0:02:57]} 3. dxe5 {[%clk 0:03:00]}  dxe5 {[%clk 0:02:57]} 4. Qxd8+ {[%clk 0:03:01]}  Kxd8 {[%clk 0:02:58]} 5. Nf3 {[%clk 0:03:01]}  f6 {[%clk 0:02:58]} 6. e4 {[%clk 0:03:00]}  c6 {[%clk 0:02:52]} 7. Bc4 {[%clk 0:02:59]}  Bg4 {[%clk 0:02:38]} 8. Be3 {[%clk 0:02:58]}  Nd7 {[%clk 0:02:36]} 9. O-O-O {[%clk 0:02:57]}  Kc7 {[%clk 0:02:36]} 10. h3 {[%clk 0:02:55]}  Bxf3 {[%clk 0:02:26]} 11. gxf3 {[%clk 0:02:56]}  Ne7 {[%clk 0:02:26]} 12. Be6 {[%clk 0:02:54]}  Nb6 {[%clk 0:02:03]} 13. a4 {[%clk 0:02:50]}  a5 {[%clk 0:01:39]} 14. f4 {[%clk 0:02:42]}  Ng6 {[%clk 0:01:36]} 15. fxe5 {[%clk 0:02:37]}  fxe5 {[%clk 0:01:25]} 16. Rhg1 {[%clk 0:02:36]}  Bb4 {[%clk 0:01:04]} 17. Ne2 {[%clk 0:02:33]}  Rad8 {[%clk 0:01:01]} 18. Rxd8 {[%clk 0:02:31]}  Rxd8 {[%clk 0:01:02]} 19. h4 {[%clk 0:02:22]}  Bf8 {[%clk 0:00:51]} 20. h5 {[%clk 0:02:21]}  Ne7 {[%clk 0:00:46]} 21. b3 {[%clk 0:02:19]}  h6 {[%clk 0:00:43]} 22. f4 {[%clk 0:02:18]}  Nd7 {[%clk 0:00:41]} 23. fxe5 {[%clk 0:02:17]}  Nc8 {[%clk 0:00:18]} 24. Bf4 {[%clk 0:02:11]}  Re8 {[%clk 0:00:16]} 25. Bf7 {[%clk 0:02:05]}  Rxe5 {[%clk 0:00:16]} 26. Nd4 {[%clk 0:02:00]}  Bd6 {[%clk 0:00:12]} 27. Bxe5 {[%clk 0:01:57]}  Bxe5 {[%clk 0:00:05]} 28. Ne6+ {[%clk 0:01:57]}  Kd6 {[%clk 0:00:05]} 29. Nxg7 {[%clk 0:01:58]}  Ne7 {[%clk 0:00:01]} 30. Ne8+ {[%clk 0:01:55]}  Kc5 {[%clk 0:00:01]} 31. Be6 {[%clk 0:01:52]}  Nf6 {[%clk 0:00:01]} 32. Nxf6 {[%clk 0:01:52]}  Bxf6 {[%clk 0:00:02]} 33. Rd1 {[%clk 0:01:52]}  Bg5+ {[%clk 0:00:02]} 34. Kb1 {[%clk 0:01:52]}  b5 {[%clk 0:00:02]} 35. Rd7 {[%clk 0:01:52]}  bxa4 {[%clk 0:00:02]} 36. bxa4 {[%clk 0:01:52]}  Kb4 {[%clk 0:00:03]} 37. Bb3 {[%clk 0:01:51]}  Kc5 {[%clk 0:00:03]} 38. c3 {[%clk 0:01:50]}  Bf6 {[%clk 0:00:03]} 39. Kc2 {[%clk 0:01:50]}  Bg5 {[%clk 0:00:02]} 40. Kd3 {[%clk 0:01:49]}  Ng8 {[%clk 0:00:03]} 41. e5 {[%clk 0:01:50]}  Ne7 {[%clk 0:00:03]} 42. Ke4 {[%clk 0:01:49]}  Nc8 {[%clk 0:00:02]} 43. e6 {[%clk 0:01:48]}  Ne7 {[%clk 0:00:02]} 44. Ke5 {[%clk 0:01:45]}  Bh4 {[%clk 0:00:03]} 45. Rd3 {[%clk 0:01:40]}  Bg5 {[%clk 0:00:01]} 46. Rg3 {[%clk 0:01:40]}  Bh4 {[%clk 0:00:01]} 47. Rg4 {[%clk 0:01:40]}  Bg5 {[%clk 0:00:01]} 48. Rxg5 {[%clk 0:01:40]}  hxg5 {[%clk 0:00:02]} 49. h6 {[%clk 0:01:41]}  g4 {[%clk 0:00:01]} 50. h7 {[%clk 0:01:42]}  g3 {[%clk 0:00:02]} 51. Kf6 {[%clk 0:01:35]}  Ng6 {[%clk 0:00:02]} 52. e7 {[%clk 0:01:23]}  g2 {[%clk 0:00:03]} 53. e8=Q {[%clk 0:01:23]}  g1=Q {[%clk 0:00:04]} 54. Qxg6 {[%clk 0:01:22]}  Qe3 {[%clk 0:00:04]} 55. Qf5+ {[%clk 0:01:22]}  Kb6 {[%clk 0:00:04]} 56. h8=Q {[%clk 0:01:21]}  Qxc3+ {[%clk 0:00:04]} 57. Qe5 {[%clk 0:01:21]}  Qf3+ {[%clk 0:00:04]} 58. Ke7 {[%clk 0:01:21]}  Qxb3 {[%clk 0:00:00]} 59. Qhb8+ {[%clk 0:01:21]} 1-0


[Site "https://www.chess.com"]

[Event "Titled Tuesday Blitz July 11 Late 2023"]
[White "Van Foreest, Jorden"]
[Black "Rastbod, Ali"]
[WhiteFideId "1039784"]
[BlackFideId "12567477"]
[WhiteElo "2975"]
[BlackElo "2674"]
[Result "0-1"]
[Round "3"]
[TimeControl "180+2"]
[Date "2023.07.11"]
[WhiteClock "0:00:14"]
[BlackClock "0:00:08"]
[Board "18"]

1. e4 {[%clk 0:03:00]}  e6 {[%clk 0:02:58]} 2. d4 {[%clk 0:03:00]}  d5 {[%clk 0:02:58]} 3. Nd2 {[%clk 0:03:00]}  Be7 {[%clk 0:02:58]} 4. c3 {[%clk 0:03:00]}  c5 {[%clk 0:02:57]} 5. Ngf3 {[%clk 0:03:00]}  cxd4 {[%clk 0:02:56]} 6. Nxd4 {[%clk 0:03:00]}  dxe4 {[%clk 0:02:44]} 7. Nxe4 {[%clk 0:03:00]}  e5 {[%clk 0:02:45]} 8. Bb5+ {[%clk 0:02:59]}  Bd7 {[%clk 0:02:45]} 9. Bxd7+ {[%clk 0:02:46]}  Qxd7 {[%clk 0:02:46]} 10. Nf3 {[%clk 0:02:42]}  Qxd1+ {[%clk 0:02:36]} 11. Kxd1 {[%clk 0:02:42]}  f5 {[%clk 0:02:20]} 12. Ng3 {[%clk 0:02:42]}  e4 {[%clk 0:02:20]} 13. Nd4 {[%clk 0:02:42]}  g6 {[%clk 0:02:19]} 14. Nb5 {[%clk 0:02:25]}  Na6 {[%clk 0:02:04]} 15. Be3 {[%clk 0:02:25]}  b6 {[%clk 0:01:40]} 16. Kc2 {[%clk 0:02:10]}  Nf6 {[%clk 0:01:15]} 17. Rhd1 {[%clk 0:02:10]}  O-O {[%clk 0:01:12]} 18. Ne2 {[%clk 0:02:07]}  Rfc8 {[%clk 0:01:06]} 19. Nf4 {[%clk 0:01:59]}  Nb4+ {[%clk 0:01:00]} 20. Kb3 {[%clk 0:01:55]}  Nc6 {[%clk 0:01:01]} 21. Nd5 {[%clk 0:01:41]}  Kf7 {[%clk 0:00:27]} 22. Nxe7 {[%clk 0:01:17]}  Kxe7 {[%clk 0:00:28]} 23. f3 {[%clk 0:01:16]}  exf3 {[%clk 0:00:21]} 24. gxf3 {[%clk 0:01:16]}  Ne8 {[%clk 0:00:18]} 25. Bg5+ {[%clk 0:01:15]}  Ke6 {[%clk 0:00:17]} 26. Re1+ {[%clk 0:01:14]}  Kf7 {[%clk 0:00:17]} 27. Rad1 {[%clk 0:01:15]}  a6 {[%clk 0:00:09]} 28. Rd7+ {[%clk 0:00:58]}  Kg8 {[%clk 0:00:09]} 29. Nd4 {[%clk 0:00:56]}  Nxd4+ {[%clk 0:00:08]} 30. cxd4 {[%clk 0:00:55]}  a5 {[%clk 0:00:06]} 31. Ree7 {[%clk 0:00:54]}  b5 {[%clk 0:00:06]} 32. Rxh7 {[%clk 0:00:41]}  a4+ {[%clk 0:00:04]} 33. Kb4 {[%clk 0:00:37]}  Rc4+ {[%clk 0:00:04]} 34. Kxb5 {[%clk 0:00:37]}  Rc2 {[%clk 0:00:05]} 35. Rh6 {[%clk 0:00:20]}  Rxb2+ {[%clk 0:00:05]} 36. Kc4 {[%clk 0:00:19]}  Rc8+ {[%clk 0:00:03]} 37. Kd3 {[%clk 0:00:18]}  Rb6 {[%clk 0:00:04]} 38. Bf4 {[%clk 0:00:17]}  Nf6 {[%clk 0:00:03]} 39. Rc7 {[%clk 0:00:15]}  Rxc7 {[%clk 0:00:03]} 40. Bxc7 {[%clk 0:00:16]}  Re6 {[%clk 0:00:04]} 41. Be5 {[%clk 0:00:16]}  Nd5 {[%clk 0:00:03]} 42. Rh8+ {[%clk 0:00:17]}  Kf7 {[%clk 0:00:03]} 43. Rh7+ {[%clk 0:00:17]}  Ke8 {[%clk 0:00:04]} 44. Kc4 {[%clk 0:00:17]}  Nb6+ {[%clk 0:00:04]} 45. Kc5 {[%clk 0:00:17]}  Nd7+ {[%clk 0:00:04]} 46. Kd5 {[%clk 0:00:18]}  Ra6 {[%clk 0:00:05]} 47. Bd6 {[%clk 0:00:16]}  Nf6+ {[%clk 0:00:05]} 48. Ke5 {[%clk 0:00:17]}  Nxh7 {[%clk 0:00:06]} 49. d5 {[%clk 0:00:17]}  Kd7 {[%clk 0:00:06]} 50. Bc5 {[%clk 0:00:18]}  Ng5 {[%clk 0:00:07]} 51. Kf4 {[%clk 0:00:17]}  Nf7 {[%clk 0:00:07]} 52. Bb4 {[%clk 0:00:16]}  Rb6 {[%clk 0:00:07]} 53. a3 {[%clk 0:00:14]}  Rxb4+ {[%clk 0:00:08]} 0-1


[Site "https://www.chess.com"]

[Event "Titled Tuesday Blitz July 11 Late 2023"]
[White "Makarian, Rudik"]
[Black "Schnaider, Ilan"]
[WhiteFideId "44105681"]
[BlackFideId "169013"]
[WhiteElo "2967"]
[BlackElo "2670"]
[Result "1-0"]
[Round "3"]
[TimeControl "180+2"]
[Date "2023.07.11"]
[WhiteClock "0:00:12"]
[BlackClock "0:00:20"]
[Board "20"]

1. d4 {[%clk 0:03:00]}  d5 {[%clk 0:03:00]} 2. c4 {[%clk 0:03:01]}  c6 {[%clk 0:03:00]} 3. Nf3 {[%clk 0:03:01]}  Nf6 {[%clk 0:03:00]} 4. Nc3 {[%clk 0:03:02]}  e6 {[%clk 0:03:00]} 5. Bg5 {[%clk 0:03:03]}  h6 {[%clk 0:02:59]} 6. Bxf6 {[%clk 0:03:03]}  Qxf6 {[%clk 0:02:58]} 7. a3 {[%clk 0:03:04]}  g6 {[%clk 0:02:57]} 8. e4 {[%clk 0:03:04]}  dxe4 {[%clk 0:02:55]} 9. Nxe4 {[%clk 0:03:05]}  Qe7 {[%clk 0:02:56]} 10. Bd3 {[%clk 0:03:04]}  Bg7 {[%clk 0:02:56]} 11. O-O {[%clk 0:02:59]}  Nd7 {[%clk 0:02:56]} 12. c5 {[%clk 0:02:58]}  O-O {[%clk 0:02:54]} 13. Re1 {[%clk 0:02:54]}  a5 {[%clk 0:02:50]} 14. Rc1 {[%clk 0:02:41]}  Rd8 {[%clk 0:02:43]} 15. Qc2 {[%clk 0:02:36]}  a4 {[%clk 0:02:40]} 16. h4 {[%clk 0:02:32]}  Nf6 {[%clk 0:02:35]} 17. Nd6 {[%clk 0:02:28]}  Nd5 {[%clk 0:02:34]} 18. Ne5 {[%clk 0:02:18]}  Rxd6 {[%clk 0:02:07]} 19. cxd6 {[%clk 0:02:17]}  Qxd6 {[%clk 0:02:08]} 20. g3 {[%clk 0:02:00]}  Nf6 {[%clk 0:02:01]} 21. Rcd1 {[%clk 0:01:50]}  Nd7 {[%clk 0:01:55]} 22. Bc4 {[%clk 0:01:44]}  Nb6 {[%clk 0:01:44]} 23. Ba2 {[%clk 0:01:43]}  Bd7 {[%clk 0:01:39]} 24. Bb1 {[%clk 0:01:30]}  Nd5 {[%clk 0:01:35]} 25. Rd3 {[%clk 0:01:23]}  Be8 {[%clk 0:01:28]} 26. Rf3 {[%clk 0:01:18]}  Ne7 {[%clk 0:01:26]} 27. h5 {[%clk 0:00:57]}  Nf5 {[%clk 0:01:26]} 28. hxg6 {[%clk 0:00:54]}  fxg6 {[%clk 0:01:25]} 29. Qe4 {[%clk 0:00:25]}  Rd8 {[%clk 0:01:23]} 30. Rd3 {[%clk 0:00:23]}  Qe7 {[%clk 0:01:04]} 31. Ba2 {[%clk 0:00:21]}  Rd6 {[%clk 0:00:45]} 32. Nf3 {[%clk 0:00:19]}  Bf7 {[%clk 0:00:43]} 33. Ne5 {[%clk 0:00:14]}  Be8 {[%clk 0:00:44]} 34. Nc4 {[%clk 0:00:14]}  Rd8 {[%clk 0:00:43]} 35. Red1 {[%clk 0:00:11]}  Bf7 {[%clk 0:00:42]} 36. Ne5 {[%clk 0:00:10]}  Be8 {[%clk 0:00:41]} 37. Ng4 {[%clk 0:00:08]}  Rd6 {[%clk 0:00:39]} 38. Ne3 {[%clk 0:00:08]}  Nxd4 {[%clk 0:00:38]} 39. Rxd4 {[%clk 0:00:08]}  Bxd4 {[%clk 0:00:34]} 40. Rxd4 {[%clk 0:00:09]}  Bf7 {[%clk 0:00:35]} 41. Qe5 {[%clk 0:00:08]}  Rxd4 {[%clk 0:00:32]} 42. Qxd4 {[%clk 0:00:08]}  b5 {[%clk 0:00:33]} 43. Ng4 {[%clk 0:00:07]}  Qg5 {[%clk 0:00:31]} 44. Nf6+ {[%clk 0:00:07]}  Kg7 {[%clk 0:00:25]} 45. Ne4+ {[%clk 0:00:07]}  e5 {[%clk 0:00:26]} 46. Nxg5 {[%clk 0:00:07]}  exd4 {[%clk 0:00:27]} 47. Nxf7 {[%clk 0:00:07]}  d3 {[%clk 0:00:27]} 48. Bb1 {[%clk 0:00:07]}  d2 {[%clk 0:00:27]} 49. Bc2 {[%clk 0:00:07]}  Kxf7 {[%clk 0:00:28]} 50. Kf1 {[%clk 0:00:07]}  g5 {[%clk 0:00:22]} 51. g4 {[%clk 0:00:07]}  Ke6 {[%clk 0:00:21]} 52. Ke2 {[%clk 0:00:08]}  Ke5 {[%clk 0:00:22]} 53. Kxd2 {[%clk 0:00:07]}  Kf4 {[%clk 0:00:23]} 54. Bd1 {[%clk 0:00:07]}  c5 {[%clk 0:00:22]} 55. Kc3 {[%clk 0:00:07]}  Ke4 {[%clk 0:00:22]} 56. Be2 {[%clk 0:00:06]}  c4 {[%clk 0:00:18]} 57. Kb4 {[%clk 0:00:07]}  Kd4 {[%clk 0:00:17]} 58. Kxb5 {[%clk 0:00:07]}  c3 {[%clk 0:00:18]} 59. bxc3+ {[%clk 0:00:07]}  Kxc3 {[%clk 0:00:19]} 60. Kxa4 {[%clk 0:00:08]}  Kd2 {[%clk 0:00:19]} 61. Bb5 {[%clk 0:00:08]}  Ke1 {[%clk 0:00:20]} 62. Be8 {[%clk 0:00:09]}  Kxf2 {[%clk 0:00:20]} 63. Bh5 {[%clk 0:00:10]}  Ke3 {[%clk 0:00:21]} 64. Kb5 {[%clk 0:00:10]}  Kd4 {[%clk 0:00:21]} 65. a4 {[%clk 0:00:11]}  Kd5 {[%clk 0:00:20]} 66. a5 {[%clk 0:00:12]} 1-0


[Site "https://www.chess.com"]

[Event "Titled Tuesday Blitz July 11 Late 2023"]
[White "Omelja, Artem"]
[Black "Svane, Rasmus"]
[WhiteFideId "14119846"]
[BlackFideId "4657101"]
[WhiteElo "2657"]
[BlackElo "2944"]
[Result "0-1"]
[Round "3"]
[TimeControl "180+2"]
[Date "2023.07.11"]
[WhiteClock "0:00:00"]
[BlackClock "0:00:07"]
[Board "22"]

1. d4 {[%clk 0:03:00]}  d5 {[%clk 0:02:59]} 2. c4 {[%clk 0:03:00]}  e6 {[%clk 0:03:00]} 3. Nc3 {[%clk 0:03:00]}  h6 {[%clk 0:02:59]} 4. Nf3 {[%clk 0:02:57]}  a6 {[%clk 0:02:57]} 5. cxd5 {[%clk 0:02:56]}  exd5 {[%clk 0:02:58]} 6. Bf4 {[%clk 0:02:56]}  Nf6 {[%clk 0:02:57]} 7. e3 {[%clk 0:02:56]}  Bd6 {[%clk 0:02:58]} 8. Bxd6 {[%clk 0:02:53]}  Qxd6 {[%clk 0:02:59]} 9. Qc2 {[%clk 0:02:53]}  O-O {[%clk 0:02:52]} 10. Bd3 {[%clk 0:02:53]}  Nc6 {[%clk 0:02:52]} 11. a3 {[%clk 0:02:52]}  Bg4 {[%clk 0:02:49]} 12. h3 {[%clk 0:02:48]}  Bxf3 {[%clk 0:02:42]} 13. gxf3 {[%clk 0:02:49]}  Ne7 {[%clk 0:02:42]} 14. f4 {[%clk 0:02:47]}  c5 {[%clk 0:02:38]} 15. dxc5 {[%clk 0:02:42]}  Qxc5 {[%clk 0:02:39]} 16. Ne2 {[%clk 0:02:42]}  Qb6 {[%clk 0:02:32]} 17. Nd4 {[%clk 0:02:38]}  Rac8 {[%clk 0:02:05]} 18. Qb3 {[%clk 0:02:31]}  Qa5+ {[%clk 0:01:48]} 19. Qb4 {[%clk 0:02:29]}  Qxb4+ {[%clk 0:01:49]} 20. axb4 {[%clk 0:02:29]}  Nc6 {[%clk 0:01:49]} 21. Nxc6 {[%clk 0:01:55]}  Rxc6 {[%clk 0:01:50]} 22. Kd2 {[%clk 0:01:55]}  Ne4+ {[%clk 0:01:34]} 23. Bxe4 {[%clk 0:01:44]}  dxe4 {[%clk 0:01:35]} 24. Rac1 {[%clk 0:01:44]}  Rd8+ {[%clk 0:01:33]} 25. Ke2 {[%clk 0:01:43]}  Rdc8 {[%clk 0:01:30]} 26. Rxc6 {[%clk 0:01:31]}  Rxc6 {[%clk 0:01:31]} 27. Rd1 {[%clk 0:01:31]}  Rc4 {[%clk 0:01:02]} 28. Rd8+ {[%clk 0:00:51]}  Kh7 {[%clk 0:01:01]} 29. Rd4 {[%clk 0:00:34]}  Rc2+ {[%clk 0:00:30]} 30. Ke1 {[%clk 0:00:15]}  f5 {[%clk 0:00:23]} 31. Rd7 {[%clk 0:00:12]}  b5 {[%clk 0:00:19]} 32. Rd2 {[%clk 0:00:08]}  Rxd2 {[%clk 0:00:14]} 33. Kxd2 {[%clk 0:00:09]}  Kg6 {[%clk 0:00:14]} 34. Kc3 {[%clk 0:00:08]}  Kh5 {[%clk 0:00:15]} 35. Kd4 {[%clk 0:00:08]}  Kh4 {[%clk 0:00:15]} 36. Ke5 {[%clk 0:00:02]}  Kxh3 {[%clk 0:00:11]} 37. Kxf5 {[%clk 0:00:01]}  h5 {[%clk 0:00:11]} 38. Kxe4 {[%clk 0:00:00]}  Kg4 {[%clk 0:00:07]} 0-1


[Site "https://www.chess.com"]